Cogmind - Beta 10.2 @@@ ROGUE MODE // 2021.08.03 @ 22:29:27 Player: BGog Result: Destroyed by G-34 Mercenary with Small Laser Performance ------------- Evolutions (0) 0 Regions Visited (1) 200 Robots Destroyed (5) 25 Value Destroyed (98) 98 Prototype IDs (0) 0 Alien Tech Used (0) 0 Bonus (0) 0 TOTAL SCORE: 323 Bonus ------- None Cogmind --------- Core Integrity 0/250 Matter 300/300 Energy 99/100 System Corruption 0% Temperature Cool (6) Movement Core (300) Ox5 Location -10/Materials Parts ------- > --- POWER (1) -------- (None) > --- PROPULSION (2) --- (None) > --- UTILITY (2) ------ Large Storage Unit > --- WEAPON (2) ------- (None) > --- INVENTORY (10) --- Light Treads Light Treads Aluminum Leg Wheel Wheel Large Storage Unit Peak State ------------ > --- POWER ------------ Light Ion Engine > --- PROPULSION ------- Aluminum Leg Aluminum Leg > --- UTILITY ---------- Large Storage Unit > --- WEAPON ----------- Medium Laser Assault Rifle > --- INVENTORY -------- Aluminum Leg Wheel Wheel [Rating: 6] Favorites ----------- Power Light Ion Engine Engine Light Ion Engine Propulsion Aluminum Leg Treads Light Treads Leg Aluminum Leg Utility Large Storage Unit Storage Large Storage Unit Weapon Assault Rifle Energy Gun Medium Laser Ballistic Gun Assault Rifle Build | -11 -10 ------- Run | Scr Mat Slots Evolved . | . . Power . | . . Propulsion . | . . Utility . | . . Weapon . | . . Parts Attached 10 | 5 5 Power 1 | 1 . Engine 1 | 1 . Core . | . . Reactor . | . . Propulsion 4 | 2 2 Treads 2 | . 2 Leg 2 | 2 . Wheel . | . . Hover . | . . Flight . | . . Utility 1 | . 1 Device . | . . Storage 1 | . 1 Processor . | . . Hackware . | . . Protection . | . . Artifact . | . . Weapon 4 | 2 2 Energy Gun 3 | 1 2 Energy Cannon . | . . Ballistic Gun 1 | 1 . Ballistic Cannon . | . . Launcher . | . . Special Weapon . | . . Impact Weapon . | . . Slashing Weapon . | . . Piercing Weapon . | . . Special Melee Weapon . | . . Unidentified Prototypes . | . . Parts Lost 9 | . 9 Power 1 | . 1 Propulsion 4 | . 4 Utility . | . . Weapon 4 | . 4 Highest Loss Streak 5 | . 5 Average Slot Usage (%) 65 | . 65 Engine 10 | . 10 Treads 5 | . 5 Leg 21 | . 21 Storage 8 | . 8 Energy Gun 9 | . 9 Ballistic Gun 10 | . 10 Naked Turns . | . . Heaviest Build 23 | 7 23 Greatest Support 40 | 20 40 Greatest Overweight (x) 5 | . 5 Average Overweight (x) . | . . Largest Inventory Capacity 10 | 4 10 Average Capacity 6 | 4 7 Most Carried 8 | 4 8 Average Carried 4 | 2 5 Final Capacity 10 | 4 10 Final Carried 6 | 4 6 Class Distribution -------------------- 100% | Mutant Dominant Class ---------------- Mutant | -10/Materials Resources | -11 -10 ----------- Run | Scr Mat Matter Collected 331 | 262 69 Remotely . | . . Salvage Created 134 | 49 85 Parts 6 | 1 5 Haulers Intercepted . | . . Recyclers Shooed . | . . Parts Field Recycled . | . . Retrieved Matter . | . . Parts Self-Destructed . | . . Prevented . | . . Kills | -11 -10 ------- Run | Scr Mat Combat Hostiles Destroyed 5 | 1 4 Guns 5 | 1 4 Classes Destroyed 2 | 1 1 Swarmer 3 | . 3 Grunt 2 | 1 1 Best Kill Streak 3 | 1 3 Combat Bots Only 3 | 1 3 Max Kills in Single Turn 1 | 1 1 Gunslinging . | . . Exploded . | . . Melee . | . . Uniques/NPCs Destroyed . | . . Combat | -11 -10 -------- Run | Scr Mat Damage Taken 1091 | 43 1048 Core 254 | 43 211 Absorbed by Shields . | . . Core Remaining (%) 82 | 82 . Volleys Fired 30 | 4 26 Largest 2 | 2 2 Hottest 70 | 70 70 Shots Fired 45 | 8 37 Gun 45 | 8 37 Cannon . | . . Launcher . | . . Special . | . . Kinetic 26 | 4 22 Thermal 19 | 4 15 Explosive . | . . Electromagnetic . | . . Robot Hit Streak 7 | 5 7 Robot Miss Streak 3 | 3 3 Penetration Max . | . . Secondary Targets . | . . Shots Hit Robots 31 | 5 26 Core Hits 9 | 2 7 Critical Hits 1 | 1 . Critical Kills 1 | 1 . Critical Parts Destroyed . | . . Melee Attacks . | . . Impact . | . . Slashing . | . . Piercing . | . . Sneak Attacks . | . . Combat Hostiles . | . . Follow-up Attacks . | . . Damage Inflicted 340 | 54 286 Guns 333 | 54 279 Cannons . | . . Explosions . | . . Melee . | . . Ramming 7 | . 7 Kinetic 187 | 29 158 Thermal 146 | 25 121 Explosive . | . . Electromagnetic . | . . Impact . | . . Slashing . | . . Piercing . | . . Highest Corruption . | . . Average Corruption . | . . Corruption Purged . | . . Overload Shots . | . . Overflow Damage . | . . Projectiles . | . . Explosions . | . . Melee . | . . Knockbacks . | . . Impact . | . . Kinetic . | . . Secondary . | . . Self-Inflicted Damage . | . . Shots . | . . Rammed 1 | . 1 Targets Rammed 1 | . 1 Kicked . | . . Crushed . | . . Highest Temperature 125 | 54 125 Average Temperature 49 | 31 55 Received Heat Transfer 387 | 24 363 Siege Activations . | . . Robots Corrupted . | . . Combat Hostiles . | . . Parts Fried . | . . Impact Corruptions . | . . Robots Melted . | . . Combat Hostiles . | . . Parts Melted . | . . Heat Transferred 444 | 74 370 Parts Sabotaged . | . . Parts Stolen . | . . Parts Stripped . | . . Power Chain Reactions . | . . Missiles Intercepted . | . . Alert | -11 -10 ------- Run | Scr Mat Peak Influence 93 | 20 93 Initial 13 | . 13 Average 35 | 3 50 Maximum Alert Level . | . . Low Security (%) 100 | 100 100 Level 1 . | . . Level 2 . | . . Level 3 . | . . Level 4 . | . . Level 5 . | . . High Security . | . . Max Security . | . . Squads Dispatched 1 | . 1 Investigation . | . . Extermination . | . . Reinforcement 1 | . 1 Assault . | . . Garrison . | . . Intercept . | . . Construction Impeded . | . . Haulers Reinforced . | . . Stealth | -11 -10 --------- Run | Scr Mat Distress Signals 1 | . 1 Communications Jammed . | . . Distress Signals . | . . Times Spotted 12 | 1 11 Peak Tracking Total 6 | 1 6 Tactical Retreats . | . . Traps | -11 -10 ------- Run | Scr Mat Traps Triggered . | . . Indirectly . | . . Trap Hack Attempts . | . . Triggered . | . . Disarmed . | . . Reprogrammed . | . . Reused . | . . Traps Extracted . | . . Installed . | . . Triggered . | . . Machines | -11 -10 ---------- Run | Scr Mat Machines Disabled . | . . Max in Single Turn . | . . Machines Sabotaged . | . . Garrisons Compromised . | . . Overloaded Fab Kills . | . . Fab Network Shutdowns . | . . Hacking | -11 -10 --------- Run | Scr Mat Machines Accessed . | . . Terminals . | . . Fabricators . | . . Repair Stations . | . . Recycling Units . | . . Scanalyzers . | . . Garrison Access . | . . Total Hacks . | . . Successful . | . . Failed . | . . Catastrophic . | . . Database Lockouts . | . . Manual . | . . Terminals . | . . Fabricators . | . . Repair Stations . | . . Recycling Units . | . . Scanalyzers . | . . Garrison Access . | . . Terminal Hacks . | . . Fabricator Hacks . | . . Repair Station Hacks . | . . Recycling Unit Hacks . | . . Scanalyzer . | . . Garrison Access Hacks . | . . Unauthorized Hacks . | . . Terminals . | . . Fabricators . | . . Repair Stations . | . . Recycling Units . | . . Scanalyzers . | . . Garrison Access . | . . Data Cores Recovered . | . . Used . | . . Hacking Detections . | . . Full Trace Events . | . . Feedback Events . | . . Feedback Blocked . | . . Robot Schematics Acquired . | . . Robots Built . | . . Matter . | . . Time . | . . Total Robot Build Rating . | . . Part Schematics Acquired . | . . Parts Built . | . . Matter . | . . Time . | . . Total Part Build Rating . | . . Parts Repaired . | . . Time . | . . Parts Recycled . | . . Recycled Matter . | . . Retrieved Matter . | . . Retrieved Components . | . . Parts Scanalyzed . | . . Part Schematics Acquired . | . . Parts Damaged . | . . Bothacking | -11 -10 ------------ Run | Scr Mat Used RIF Installer . | . . Robots Hacked . | . . Non-combat . | . . Combat . | . . Robot Hacks Applied . | . . Relay Couplers Released . | . . Robots Rewired . | . . Allies Hacked . | . . Hacks Repelled . | . . Allies | -11 -10 -------- Run | Scr Mat Total Allies . | . . Largest Group . | . . Highest-Rated Group . | . . Highest-Rated Ally . | . . Total Orders . | . . Ally Attacks . | . . Total Damage . | . . Kills . | . . Allies Corrupted . | . . Allies Melted . | . . Intel | -11 -10 ------- Run | Scr Mat Robot Analysis Total . | . . Derelict Logs Recovered . | . . Drone Launches . | . . Drone Recoveries . | . . Exploration | -11 -10 ------------- Run | Scr Mat Turns Passed 411 | 130 281 Spaces Moved 249 | 105 144 Core 34 | 33 1 Treads 33 | . 33 Legs 182 | 72 110 Wheels . | . . Hover . | . . Flight . | . . Fastest Speed 50 | 50 120 Average Speed 120 | 98 137 Slowest Speed 300 | 120 300 Overloaded Moves . | . . Propulsion Burnouts . | . . Robots Hopped . | . . Cave-ins Triggered . | . . Exploration Rate (%) 17 | 8 27 Regions Visited 1 Branch Regions . Pre-discovered Areas . | . . Known Exits Taken . | . . Unknown Exits Taken 1 | 1 . Scrap Searched . | . . Spaces Dug . | . . Terrain Destroyed . | . . Melee . | . . Projectile . | . . AOE . | . . Terrain Rammed . | . . Walls Destroyed . | . . Machines Disabled . | . . Actions | -11 -10 --------- Run | Scr Mat Total 315 | 123 192 Wait 12 | 3 9 Move 248 | 104 144 Hop . | . . Pick Up 14 | 7 7 Fast Attach 2 | 2 . Attach 8 | 3 5 Detach . | . . Swap . | . . Drop . | . . Fire 30 | 4 26 Melee . | . . Ram . | . . Kick . | . . Crush 1 | . 1 Escape Stasis . | . . Rewire . | . . Trap . | . . Miscellaneous . | . . Route ------- -11/Scrapyard -10/Materials History --------- Turn | Location | Event 2 | -11/Scrapyard | Met Revision 17 96 | -11/Scrapyard | Discovered new exit (range 8) 131 | -11/Scrapyard | Entered Materials 318 | -10/Materials | Build established: Mutant 384 | -10/Materials | Lost 5 parts (1p2n2w) 393 | -10/Materials | Core integrity fell below 50% 403 | -10/Materials | Core integrity fell below 20% 412 | -10/Materials | Destroyed by G-34 Mercenary with Small Laser Last Messages --------------- Acquired Lgt. Treads. K-01 Serf collects debris. O-16 Technician: "IFF HANDSHAKE FAILED. SECURING TERMINAL." K-01 Serf collects debris. ALERT: Hostiles spotted, dispatching reinforcements to Terminal M003. G-34 Mercenary destroyed. R-06 Scavenger collects Aluminum Leg. Lgt. Ion Engine destroyed. Assault Rifle destroyed. Aluminum Leg destroyed. Med. Laser destroyed. Aluminum Leg destroyed. Acquired 42 matter. W-16 Scout sends out distress signal. Acquired Sml. Laser. U-05 Engineer lays Concrete. Slammed into R-06 Scavenger. Ramming works as a last resort when unarmed or blocked, but can have serious negative consequences. Sml. Laser destroyed. Lgt. Treads destroyed. Map ----- +----------------------------------------------------+ | ???????????????????????????+ ??????? | | ???????????????????????????# ??????? | | ???????????????????????????# ??????? | | ???????????????????????????# ???????? | | ???????????????????????????# ???????? | | ???????????????????????????# ########? | | ???????????????????????????# ## ? | | ????????????????############ ## """" # | | ????????????????# # """" # | | ????????????????# # """" # | | ?????????######## + # | | ????????? # """" # | | ?????????? # """" # | | ??????????? ^^ # """" # | | ???????????"" """"" !! # # | | ?????????""""""" """"""""" #""" # | | ???? """ """ """ """ #"R # | | ???? u #""" # | | ???? g # # | | ???? ######## | | ???? g #??????? | | ?????###### #??????? | | ??????????# #??????? | | ??????????# #??????? | | ??????????# a #??????? | | ??????????# @ #??????? | | ??????????# #??????? | | ??????????####### #??????? | | ????????????????###+#######% #??????? | | ?????????????????? ??????# ##??????? | | ??????????????????] ??????# s ######### | | ?????????????????? ??????# # # | | ?????????????????? ??????# # """ # | | ?????????????????? ??????# s # """ # | | ??????????????????????????# # """ # | | ??????????????????????????# # # | | ??????????????????????????# + """ # | | ??????????????????????????# # """ # | | ??????????????????????????# # """ # | | ??????????????????????????# # # | | ??????????????????????????# ######### | | ??????????????????????????# # # | | ??????????????????????????# # # | | ??????????????????????????# # # | | ??????????????????????????# # # | | ??????????????????????????# # # | | ??????????????????????????# + # | | ??????????????????????????# # # | | ??????????????????????????# # # | | ??????????????????????????###### # | +----------------------------------------------------+ Best States ------------- Heat Dissipation 25 Energy Generation 10 Energy Capacity 125 Matter Stores 300 Matter Capacity 300 Sight Range 16 Terrain Scan Density 10 Evasion (%) 50 Recoil Reduction 2 Item Schematics ----------------- None Robot Schematics ------------------ None Fabricated ------------ Nothing Alien Tech Used ----------------- None Achievements -------------- None Challenges ------------ None Game ------ Seed InertialMobilePenetrator Manual? 0 Play Time 00:23:04 Cumulative 3.2 hours Start 2021.08.03 @ 21:38:38 End 2021.08.03 @ 22:29:27 Sessions 1 Manual Loads 0 Difficulty Rogue Special Mode None Game No. 2 Rogue 2 Adventurer 0 Explorer 0 Win Type - Total 0 Types 0/0/0/0/0/0/0/0/0 Lore% 0 Gallery% 4 Achievement% 3 Wizard Run 0 Options --------- ASCII 0 Keyboard 1 Movement Numpad Keybinds 0 Fullscreen 1 Font 24/Smallcaps Map View 113x50 Tactical HUD 0 Map Filters NONE Filters NONE Steam 1 RUN: 1c5f377f-95a6-416e-a82d-09059f40c66c